[Event "Titled Tuesday Blitz May 23 Late 2023"]
[White "Yirik, Volkan"]
[Black "Hamitevici, Vladimir"]
[WhiteFideId "6300782"]
[BlackFideId "13902393"]
[WhiteElo "1902"]
[BlackElo "2401"]
[Result "0-1"]
[Round "01"]
[TimeControl "180+2"]
[Date "2023.05.23"]
[WhiteClock "0:00:05"]
[BlackClock "0:00:06"]

1. e4 {[%clk 0:02:53]}  e6 {[%clk 0:02:53]} 2. d4 {[%clk 0:02:52]}  d5 {[%clk 0:02:53]} 3. Nc3 {[%clk 0:02:52]}  Bb4 {[%clk 0:02:50]} 4. exd5 {[%clk 0:02:52]}  exd5 {[%clk 0:02:48]} 5. Qf3 {[%clk 0:02:52]}  Ne7 {[%clk 0:02:41]} 6. Bd3 {[%clk 0:02:48]}  Nbc6 {[%clk 0:02:37]} 7. Ne2 {[%clk 0:02:48]}  Be6 {[%clk 0:02:17]} 8. O-O {[%clk 0:02:47]}  Qd7 {[%clk 0:02:18]} 9. h3 {[%clk 0:02:46]}  h6 {[%clk 0:02:01]} 10. a3 {[%clk 0:02:45]}  Bd6 {[%clk 0:02:01]} 11. Nb5 {[%clk 0:02:45]}  g5 {[%clk 0:01:48]} 12. Nxd6+ {[%clk 0:02:45]}  Qxd6 {[%clk 0:01:46]} 13. Qf6 {[%clk 0:02:45]}  O-O-O {[%clk 0:01:46]} 14. f4 {[%clk 0:02:28]}  Rdg8 {[%clk 0:01:13]} 15. f5 {[%clk 0:02:26]}  Bd7 {[%clk 0:01:14]} 16. Qxd6 {[%clk 0:02:25]}  cxd6 {[%clk 0:01:15]} 17. c3 {[%clk 0:02:13]}  Re8 {[%clk 0:01:07]} 18. Ng3 {[%clk 0:02:02]}  f6 {[%clk 0:01:07]} 19. Bd2 {[%clk 0:01:59]}  h5 {[%clk 0:01:06]} 20. Rae1 {[%clk 0:01:48]}  h4 {[%clk 0:01:05]} 21. Nh1 {[%clk 0:01:48]}  Na5 {[%clk 0:00:55]} 22. Rf2 {[%clk 0:01:45]}  Nb3 {[%clk 0:00:46]} 23. Be3 {[%clk 0:01:14]}  Nc6 {[%clk 0:00:43]} 24. Rfe2 {[%clk 0:01:10]}  Nca5 {[%clk 0:00:30]} 25. Nf2 {[%clk 0:00:57]}  Nc4 {[%clk 0:00:30]} 26. Bxc4 {[%clk 0:00:56]}  dxc4 {[%clk 0:00:31]} 27. Ng4 {[%clk 0:00:56]}  Rhf8 {[%clk 0:00:27]} 28. Rf2 {[%clk 0:00:50]}  Re4 {[%clk 0:00:23]} 29. Kf1 {[%clk 0:00:40]}  Bc6 {[%clk 0:00:17]} 30. Nxf6 {[%clk 0:00:30]}  Rxf6 {[%clk 0:00:15]} 31. Bxg5 {[%clk 0:00:30]}  Rf7 {[%clk 0:00:11]} 32. f6 {[%clk 0:00:26]}  Kd7 {[%clk 0:00:11]} 33. Rxe4 {[%clk 0:00:25]}  Bxe4 {[%clk 0:00:11]} 34. Bxh4 {[%clk 0:00:26]}  Ke6 {[%clk 0:00:08]} 35. g4 {[%clk 0:00:26]}  Rh7 {[%clk 0:00:09]} 36. Bg3 {[%clk 0:00:24]}  Kf7 {[%clk 0:00:06]} 37. h4 {[%clk 0:00:22]}  Nc1 {[%clk 0:00:06]} 38. g5 {[%clk 0:00:20]}  Nd3 {[%clk 0:00:06]} 39. Re2 {[%clk 0:00:19]}  d5 {[%clk 0:00:07]} 40. Kg1 {[%clk 0:00:17]}  Kg6 {[%clk 0:00:07]} 41. Re3 {[%clk 0:00:17]}  b5 {[%clk 0:00:07]} 42. Re2 {[%clk 0:00:17]}  a5 {[%clk 0:00:08]} 43. Rh2 {[%clk 0:00:17]}  Kh5 {[%clk 0:00:05]} 44. Be5 {[%clk 0:00:14]}  Rf7 {[%clk 0:00:04]} 45. Kf1 {[%clk 0:00:10]}  Kg4 {[%clk 0:00:04]} 46. Ke2 {[%clk 0:00:10]}  Kf5 {[%clk 0:00:04]} 47. Ke3 {[%clk 0:00:09]}  Nxe5 {[%clk 0:00:05]} 48. dxe5 {[%clk 0:00:10]}  Kxe5 {[%clk 0:00:06]} 49. h5 {[%clk 0:00:10]}  Kf5 {[%clk 0:00:06]} 50. Rf2+ {[%clk 0:00:10]}  Kxg5 {[%clk 0:00:06]} 51. Rg2+ {[%clk 0:00:05]}  Bxg2 {[%clk 0:00:06]} 0-1


[Site "https://www.chess.com"]

[Event "Titled Tuesday Blitz May 23 Late 2023"]
[White "ArchibaldCerveza29"]
[Black "benny_aizenberg"]
[WhiteElo "2396"]
[BlackElo "2703"]
[Result "1-0"]
[Round "01"]
[TimeControl "180+2"]
[Date "2023.05.23"]
[WhiteClock "0:00:05"]
[BlackClock "0:00:00"]

1. d4 {[%clk 0:02:47]}  f5 {[%clk 0:02:59]} 2. Nf3 {[%clk 0:02:44]}  Nf6 {[%clk 0:02:59]} 3. c4 {[%clk 0:02:42]}  g6 {[%clk 0:02:59]} 4. Nc3 {[%clk 0:02:42]}  Bg7 {[%clk 0:02:57]} 5. g3 {[%clk 0:02:41]}  O-O {[%clk 0:02:56]} 6. Bg2 {[%clk 0:02:41]}  d6 {[%clk 0:02:57]} 7. O-O {[%clk 0:02:41]}  c6 {[%clk 0:02:58]} 8. b3 {[%clk 0:02:39]}  Nbd7 {[%clk 0:02:42]} 9. Ba3 {[%clk 0:02:30]}  Qa5 {[%clk 0:02:39]} 10. Qc1 {[%clk 0:02:27]}  Ne4 {[%clk 0:02:35]} 11. Bb2 {[%clk 0:01:53]}  Nxc3 {[%clk 0:02:17]} 12. Bxc3 {[%clk 0:01:54]}  Qc7 {[%clk 0:02:16]} 13. Rd1 {[%clk 0:01:49]}  e5 {[%clk 0:02:16]} 14. dxe5 {[%clk 0:01:48]}  dxe5 {[%clk 0:02:17]} 15. Qa3 {[%clk 0:01:31]}  e4 {[%clk 0:02:10]} 16. Bxg7 {[%clk 0:01:19]}  Kxg7 {[%clk 0:02:09]} 17. Ng5 {[%clk 0:01:02]}  Nf6 {[%clk 0:02:07]} 18. Rd2 {[%clk 0:00:52]}  h6 {[%clk 0:02:02]} 19. Nh3 {[%clk 0:00:52]}  g5 {[%clk 0:02:02]} 20. Rad1 {[%clk 0:00:51]}  Be6 {[%clk 0:02:02]} 21. Rd6 {[%clk 0:00:47]}  Rad8 {[%clk 0:01:56]} 22. c5 {[%clk 0:00:36]}  Bd5 {[%clk 0:01:46]} 23. f3 {[%clk 0:00:29]}  e3 {[%clk 0:01:36]} 24. Kh1 {[%clk 0:00:26]}  a6 {[%clk 0:01:08]} 25. Rxd8 {[%clk 0:00:26]}  Rxd8 {[%clk 0:01:06]} 26. Qc1 {[%clk 0:00:27]}  Re8 {[%clk 0:00:53]} 27. Qc3 {[%clk 0:00:23]}  Kg6 {[%clk 0:00:48]} 28. b4 {[%clk 0:00:22]}  Qe5 {[%clk 0:00:46]} 29. Qxe5 {[%clk 0:00:17]}  Rxe5 {[%clk 0:00:45]} 30. f4 {[%clk 0:00:18]}  Re6 {[%clk 0:00:36]} 31. fxg5 {[%clk 0:00:16]}  hxg5 {[%clk 0:00:37]} 32. a3 {[%clk 0:00:14]}  Ne4 {[%clk 0:00:31]} 33. Kg1 {[%clk 0:00:10]}  Nc3 {[%clk 0:00:30]} 34. Re1 {[%clk 0:00:09]}  Bc4 {[%clk 0:00:31]} 35. Bf3 {[%clk 0:00:08]}  Kf6 {[%clk 0:00:31]} 36. g4 {[%clk 0:00:09]}  f4 {[%clk 0:00:31]} 37. Kg2 {[%clk 0:00:09]}  Re8 {[%clk 0:00:29]} 38. Ng1 {[%clk 0:00:10]}  Rd8 {[%clk 0:00:29]} 39. Rc1 {[%clk 0:00:10]}  Nxe2 {[%clk 0:00:20]} 40. Rxc4 {[%clk 0:00:10]}  Nd4 {[%clk 0:00:19]} 41. Ne2 {[%clk 0:00:09]}  Nb5 {[%clk 0:00:19]} 42. a4 {[%clk 0:00:09]}  Nc7 {[%clk 0:00:18]} 43. Rd4 {[%clk 0:00:10]}  Rxd4 {[%clk 0:00:16]} 44. Nxd4 {[%clk 0:00:11]}  Ke5 {[%clk 0:00:16]} 45. Nf5 {[%clk 0:00:10]}  a5 {[%clk 0:00:15]} 46. bxa5 {[%clk 0:00:08]}  Na6 {[%clk 0:00:15]} 47. Kf1 {[%clk 0:00:08]}  Nxc5 {[%clk 0:00:15]} 48. Ke2 {[%clk 0:00:09]}  Nxa4 {[%clk 0:00:16]} 49. h4 {[%clk 0:00:09]}  gxh4 {[%clk 0:00:15]} 50. Nxh4 {[%clk 0:00:10]}  Kf6 {[%clk 0:00:09]} 51. Ng2 {[%clk 0:00:09]}  Kg5 {[%clk 0:00:09]} 52. Kd3 {[%clk 0:00:06]}  Nc5+ {[%clk 0:00:09]} 53. Kc4 {[%clk 0:00:07]}  Ne6 {[%clk 0:00:07]} 54. Kd3 {[%clk 0:00:05]}  Nc5+ {[%clk 0:00:06]} 55. Kc4 {[%clk 0:00:05]}  Ne6 {[%clk 0:00:06]} 56. Kd3 {[%clk 0:00:06]}  Kf6 {[%clk 0:00:04]} 57. Ke4 {[%clk 0:00:04]}  Kg5 {[%clk 0:00:03]} 58. Ke5 {[%clk 0:00:04]}  Nf8 {[%clk 0:00:02]} 59. Nxf4 {[%clk 0:00:04]}  Nd7+ {[%clk 0:00:03]} 60. Ke4 {[%clk 0:00:04]}  Nc5+ {[%clk 0:00:03]} 61. Ke5 {[%clk 0:00:04]}  Nb3 {[%clk 0:00:02]} 62. Ke4 {[%clk 0:00:03]}  Nxa5 {[%clk 0:00:02]} 63. Kxe3 {[%clk 0:00:03]}  Nc4+ {[%clk 0:00:02]} 64. Ke4 {[%clk 0:00:02]}  Nd6+ {[%clk 0:00:03]} 65. Ke5 {[%clk 0:00:03]}  Nf7+ {[%clk 0:00:03]} 66. Ke4 {[%clk 0:00:03]}  b5 {[%clk 0:00:03]} 67. Ne6+ {[%clk 0:00:03]}  Kf6 {[%clk 0:00:03]} 68. Nd4 {[%clk 0:00:03]}  Ng5+ {[%clk 0:00:03]} 69. Kf4 {[%clk 0:00:03]}  c5 {[%clk 0:00:04]} 70. Nxb5 {[%clk 0:00:03]}  Ne6+ {[%clk 0:00:04]} 71. Kg3 {[%clk 0:00:03]}  Kg5 {[%clk 0:00:04]} 72. Nc3 {[%clk 0:00:03]}  c4 {[%clk 0:00:05]} 73. Ne4+ {[%clk 0:00:03]}  Kg6 {[%clk 0:00:05]} 74. Be2 {[%clk 0:00:04]}  c3 {[%clk 0:00:03]} 75. Nxc3 {[%clk 0:00:04]}  Nd4 {[%clk 0:00:03]} 76. Bd3+ {[%clk 0:00:04]}  Kf6 {[%clk 0:00:03]} 77. Ne4+ {[%clk 0:00:05]}  Kg7 {[%clk 0:00:03]} 78. Kf4 {[%clk 0:00:04]}  Ne6+ {[%clk 0:00:04]} 79. Ke5 {[%clk 0:00:04]}  Nd8 {[%clk 0:00:04]} 80. Nd6 {[%clk 0:00:04]}  Nc6+ {[%clk 0:00:04]} 81. Kd5 {[%clk 0:00:03]}  Nb4+ {[%clk 0:00:03]} 82. Ke4 {[%clk 0:00:03]}  Nc6 {[%clk 0:00:03]} 83. Nf5+ {[%clk 0:00:03]}  Kf6 {[%clk 0:00:03]} 84. Ng3 {[%clk 0:00:03]}  Kg5 {[%clk 0:00:03]} 85. Be2 {[%clk 0:00:01]}  Nd8 {[%clk 0:00:03]} 86. Kf3 {[%clk 0:00:01]}  Ne6 {[%clk 0:00:03]} 87. Ne4+ {[%clk 0:00:02]}  Kg6 {[%clk 0:00:04]} 88. Kg3 {[%clk 0:00:03]}  Nd4 {[%clk 0:00:04]} 89. Bd3 {[%clk 0:00:03]}  Kh6 {[%clk 0:00:04]} 90. Nd6 {[%clk 0:00:02]}  Kg5 {[%clk 0:00:03]} 91. Nf7+ {[%clk 0:00:02]}  Kf6 {[%clk 0:00:03]} 92. Nd6 {[%clk 0:00:02]}  Kg5 {[%clk 0:00:03]} 93. Ne4+ {[%clk 0:00:03]}  Kg6 {[%clk 0:00:02]} 94. Kf4 {[%clk 0:00:03]}  Ne6+ {[%clk 0:00:02]} 95. Ke5 {[%clk 0:00:04]}  Nf8 {[%clk 0:00:02]} 96. Kf4 {[%clk 0:00:03]}  Ne6+ {[%clk 0:00:02]} 97. Kg3 {[%clk 0:00:03]}  Nd4 {[%clk 0:00:02]} 98. Kh4 {[%clk 0:00:03]}  Nf3+ {[%clk 0:00:02]} 99. Kh3 {[%clk 0:00:03]}  Ne5 {[%clk 0:00:02]} 100. Be2 {[%clk 0:00:02]}  Kh6 {[%clk 0:00:02]} 101. g5+ {[%clk 0:00:01]}  Kg6 {[%clk 0:00:02]} 102. Kh4 {[%clk 0:00:02]}  Kf5 {[%clk 0:00:02]} 103. Ng3+ {[%clk 0:00:02]}  Kg6 {[%clk 0:00:02]} 104. Bd1 {[%clk 0:00:03]}  Nf7 {[%clk 0:00:02]} 105. Bc2+ {[%clk 0:00:04]}  Kg7 {[%clk 0:00:03]} 106. Kg4 {[%clk 0:00:04]}  Ne5+ {[%clk 0:00:02]} 107. Kf5 {[%clk 0:00:04]}  Nc6 {[%clk 0:00:03]} 108. Nh5+ {[%clk 0:00:05]}  Kg8 {[%clk 0:00:02]} 109. Bb3+ {[%clk 0:00:05]}  Kf8 {[%clk 0:00:02]} 110. g6 {[%clk 0:00:05]}  Nd4+ {[%clk 0:00:02]} 111. Kg5 {[%clk 0:00:05]}  Nxb3 {[%clk 0:00:02]} 112. g7+ {[%clk 0:00:04]}  Kf7 {[%clk 0:00:02]} 113. Kh6 {[%clk 0:00:05]}  Nd4 {[%clk 0:00:01]} 114. Kh7 {[%clk 0:00:05]}  Ne6 {[%clk 0:00:01]} 115. g8=Q+ {[%clk 0:00:05]}  Ke7 {[%clk 0:00:02]} 116. Kg6 {[%clk 0:00:03]}  Nf8+ {[%clk 0:00:02]} 117. Kg7 {[%clk 0:00:03]}  Ne6+ {[%clk 0:00:02]} 118. Kh8 {[%clk 0:00:04]}  Nd8 {[%clk 0:00:02]} 119. Ng7 {[%clk 0:00:04]}  Nf7+ {[%clk 0:00:02]} 120. Kh7 {[%clk 0:00:04]}  Ne5 {[%clk 0:00:02]} 121. Kh6 {[%clk 0:00:04]}  Nd7 {[%clk 0:00:01]} 122. Qe8+ {[%clk 0:00:03]}  Kd6 {[%clk 0:00:01]} 123. Nf5+ {[%clk 0:00:04]}  Kc7 {[%clk 0:00:00]} 124. Kg6 {[%clk 0:00:05]} 1-0


[Site "https://www.chess.com"]

[Event "Titled Tuesday Blitz May 23 Late 2023"]
[White "Horvath, Dominik"]
[Black "Prydun, Andriy"]
[WhiteFideId "1642561"]
[BlackFideId "14145898"]
[WhiteElo "2407"]
[BlackElo "2164"]
[Result "0-1"]
[Round "01"]
[TimeControl "180+2"]
[Date "2023.05.23"]
[WhiteClock "0:00:14"]
[BlackClock "0:00:10"]

1. d4 {[%clk 0:02:56]}  Nf6 {[%clk 0:02:58]} 2. Nf3 {[%clk 0:02:54]}  e6 {[%clk 0:02:53]} 3. Bf4 {[%clk 0:02:54]}  Nd5 {[%clk 0:02:52]} 4. Bg3 {[%clk 0:02:52]}  Bd6 {[%clk 0:02:51]} 5. e4 {[%clk 0:02:47]}  Nb6 {[%clk 0:02:50]} 6. Nc3 {[%clk 0:02:31]}  Bxg3 {[%clk 0:02:44]} 7. hxg3 {[%clk 0:02:31]}  d6 {[%clk 0:02:42]} 8. Bd3 {[%clk 0:02:31]}  Nc6 {[%clk 0:02:40]} 9. Qd2 {[%clk 0:02:28]}  Qe7 {[%clk 0:02:30]} 10. O-O-O {[%clk 0:02:27]}  Bd7 {[%clk 0:02:21]} 11. Rh5 {[%clk 0:02:21]}  O-O-O {[%clk 0:02:18]} 12. Rdh1 {[%clk 0:02:21]}  h6 {[%clk 0:02:17]} 13. g4 {[%clk 0:02:18]}  f6 {[%clk 0:02:17]} 14. a3 {[%clk 0:02:07]}  e5 {[%clk 0:02:16]} 15. d5 {[%clk 0:02:04]}  Nd4 {[%clk 0:02:15]} 16. R5h4 {[%clk 0:01:51]}  Nxf3 {[%clk 0:02:13]} 17. gxf3 {[%clk 0:01:51]}  Qe8 {[%clk 0:02:02]} 18. R4h2 {[%clk 0:01:45]}  Qg6 {[%clk 0:02:01]} 19. Ne2 {[%clk 0:01:40]}  Rde8 {[%clk 0:01:57]} 20. Qa5 {[%clk 0:01:37]}  Kb8 {[%clk 0:01:56]} 21. Kb1 {[%clk 0:01:37]}  Re7 {[%clk 0:01:51]} 22. c4 {[%clk 0:01:36]}  Nc8 {[%clk 0:01:32]} 23. c5 {[%clk 0:01:35]}  dxc5 {[%clk 0:01:32]} 24. Qxc5 {[%clk 0:01:35]}  Nd6 {[%clk 0:01:32]} 25. Rc1 {[%clk 0:01:30]}  Rc8 {[%clk 0:01:32]} 26. Rc3 {[%clk 0:01:27]}  Qg5 {[%clk 0:01:30]} 27. Rh1 {[%clk 0:01:25]}  g6 {[%clk 0:01:11]} 28. Rhc1 {[%clk 0:01:08]}  Rh7 {[%clk 0:01:07]} 29. Qb4 {[%clk 0:01:07]}  Be8 {[%clk 0:00:56]} 30. Qxd6 {[%clk 0:01:06]}  Qxc1+ {[%clk 0:00:54]} 31. Rxc1 {[%clk 0:01:04]}  cxd6 {[%clk 0:00:54]} 32. Rh1 {[%clk 0:00:58]}  h5 {[%clk 0:00:48]} 33. f4 {[%clk 0:00:58]}  h4 {[%clk 0:00:42]} 34. fxe5 {[%clk 0:00:49]}  fxe5 {[%clk 0:00:43]} 35. f4 {[%clk 0:00:49]}  g5 {[%clk 0:00:41]} 36. f5 {[%clk 0:00:43]}  a6 {[%clk 0:00:40]} 37. Ng1 {[%clk 0:00:44]}  Ba4 {[%clk 0:00:35]} 38. Nh3 {[%clk 0:00:43]}  Rg8 {[%clk 0:00:36]} 39. Rf1 {[%clk 0:00:40]}  Rf7 {[%clk 0:00:35]} 40. Rf2 {[%clk 0:00:37]}  Bd1 {[%clk 0:00:35]} 41. Be2 {[%clk 0:00:33]}  Bxe2 {[%clk 0:00:35]} 42. Rxe2 {[%clk 0:00:33]}  Rc7 {[%clk 0:00:34]} 43. Rf2 {[%clk 0:00:29]}  Rc4 {[%clk 0:00:33]} 44. f6 {[%clk 0:00:30]}  Rxe4 {[%clk 0:00:33]} 45. f7 {[%clk 0:00:30]}  Rf8 {[%clk 0:00:33]} 46. Nxg5 {[%clk 0:00:25]}  Rf4 {[%clk 0:00:33]} 47. Rg2 {[%clk 0:00:17]}  R4xf7 {[%clk 0:00:29]} 48. Nxf7 {[%clk 0:00:16]}  Rxf7 {[%clk 0:00:30]} 49. Rh2 {[%clk 0:00:16]}  Rf4 {[%clk 0:00:26]} 50. Rxh4 {[%clk 0:00:16]}  Ka7 {[%clk 0:00:26]} 51. Kc2 {[%clk 0:00:16]}  Rd4 {[%clk 0:00:26]} 52. Kc3 {[%clk 0:00:14]}  a5 {[%clk 0:00:25]} 53. b3 {[%clk 0:00:14]}  Rxd5 {[%clk 0:00:22]} 54. g5 {[%clk 0:00:15]}  e4 {[%clk 0:00:21]} 55. Rg4 {[%clk 0:00:15]}  e3 {[%clk 0:00:21]} 56. g6 {[%clk 0:00:15]}  Re5 {[%clk 0:00:17]} 57. g7 {[%clk 0:00:13]}  e2 {[%clk 0:00:17]} 58. Rg1 {[%clk 0:00:13]}  Rg5 {[%clk 0:00:17]} 59. Re1 {[%clk 0:00:12]}  Rxg7 {[%clk 0:00:17]} 60. Rxe2 {[%clk 0:00:13]}  Kb6 {[%clk 0:00:17]} 61. Re6 {[%clk 0:00:13]}  Kc6 {[%clk 0:00:17]} 62. Rh6 {[%clk 0:00:13]}  Rg3+ {[%clk 0:00:17]} 63. Kb2 {[%clk 0:00:13]}  b6 {[%clk 0:00:17]} 64. a4 {[%clk 0:00:13]}  Kc5 {[%clk 0:00:16]} 65. Rh8 {[%clk 0:00:13]}  d5 {[%clk 0:00:14]} 66. Rc8+ {[%clk 0:00:13]}  Kb4 {[%clk 0:00:14]} 67. Rc2 {[%clk 0:00:12]}  Rxb3+ {[%clk 0:00:15]} 68. Ka2 {[%clk 0:00:12]}  Ra3+ {[%clk 0:00:13]} 69. Kb2 {[%clk 0:00:12]}  Rxa4 {[%clk 0:00:13]} 70. Rd2 {[%clk 0:00:12]}  Kc5 {[%clk 0:00:13]} 71. Kb3 {[%clk 0:00:12]}  Rc4 {[%clk 0:00:14]} 72. Rh2 {[%clk 0:00:12]}  a4+ {[%clk 0:00:14]} 73. Ka3 {[%clk 0:00:12]}  b5 {[%clk 0:00:14]} 74. Rh8 {[%clk 0:00:13]}  Rc3+ {[%clk 0:00:14]} 75. Kb2 {[%clk 0:00:13]}  Rg3 {[%clk 0:00:15]} 76. Rc8+ {[%clk 0:00:13]}  Kb4 {[%clk 0:00:15]} 77. Rd8 {[%clk 0:00:13]}  Rg2+ {[%clk 0:00:15]} 78. Ka1 {[%clk 0:00:14]}  Rd2 {[%clk 0:00:14]} 79. Rh8 {[%clk 0:00:13]}  d4 {[%clk 0:00:12]} 80. Rh3 {[%clk 0:00:13]}  Rc2 {[%clk 0:00:11]} 81. Rh1 {[%clk 0:00:13]}  a3 {[%clk 0:00:10]} 82. Rb1+ {[%clk 0:00:14]}  Kc4 {[%clk 0:00:11]} 83. Rf1 {[%clk 0:00:13]}  b4 {[%clk 0:00:11]} 84. Rf8 {[%clk 0:00:13]}  Kb3 {[%clk 0:00:11]} 85. Rf1 {[%clk 0:00:13]}  d3 {[%clk 0:00:11]} 86. Rd1 {[%clk 0:00:13]}  d2 {[%clk 0:00:10]} 87. Rb1+ {[%clk 0:00:14]}  Ka4 {[%clk 0:00:10]} 88. Rd1 {[%clk 0:00:14]}  Rc1+ {[%clk 0:00:10]} 89. Ka2 {[%clk 0:00:14]}  b3# {[%clk 0:00:10]} 0-1


[Site "https://www.chess.com"]

[Event "Titled Tuesday Blitz May 23 Late 2023"]
[White "Bellissimo, Joseph F."]
[Black "Gritsenko, Nikolai"]
[WhiteFideId "2609843"]
[BlackFideId "14112493"]
[WhiteElo "2103"]
[BlackElo "2389"]
[Result "0-1"]
[Round "01"]
[TimeControl "180+2"]
[Date "2023.05.23"]
[WhiteClock "0:00:08"]
[BlackClock "0:00:05"]

1. e4 {[%clk 0:02:55]}  d5 {[%clk 0:02:21]} 2. exd5 {[%clk 0:02:53]}  Nf6 {[%clk 0:02:21]} 3. d4 {[%clk 0:02:53]}  Bg4 {[%clk 0:02:19]} 4. f3 {[%clk 0:02:52]}  Bf5 {[%clk 0:02:18]} 5. c4 {[%clk 0:02:52]}  e6 {[%clk 0:02:18]} 6. dxe6 {[%clk 0:02:51]}  Nc6 {[%clk 0:02:17]} 7. Be3 {[%clk 0:02:45]}  Nb4 {[%clk 0:02:11]} 8. Na3 {[%clk 0:02:44]}  fxe6 {[%clk 0:02:10]} 9. g4 {[%clk 0:02:39]}  Bg6 {[%clk 0:02:08]} 10. h4 {[%clk 0:02:38]}  h6 {[%clk 0:02:00]} 11. h5 {[%clk 0:02:36]}  Bh7 {[%clk 0:01:59]} 12. Kf2 {[%clk 0:02:34]}  Bd6 {[%clk 0:01:43]} 13. Kg2 {[%clk 0:02:33]}  O-O {[%clk 0:01:41]} 14. Be2 {[%clk 0:02:30]}  Nc6 {[%clk 0:01:34]} 15. Nb5 {[%clk 0:02:26]}  a6 {[%clk 0:01:27]} 16. Nxd6 {[%clk 0:02:26]}  Qxd6 {[%clk 0:01:27]} 17. Qd2 {[%clk 0:02:26]}  Rf7 {[%clk 0:01:21]} 18. Rd1 {[%clk 0:02:19]}  Raf8 {[%clk 0:01:15]} 19. Bf4 {[%clk 0:02:17]}  Qe7 {[%clk 0:01:08]} 20. Nh3 {[%clk 0:02:17]}  Nxh5 {[%clk 0:00:55]} 21. gxh5 {[%clk 0:02:17]}  Rxf4 {[%clk 0:00:54]} 22. Nxf4 {[%clk 0:02:06]}  Qg5+ {[%clk 0:00:53]} 23. Kf2 {[%clk 0:02:04]}  Rxf4 {[%clk 0:00:53]} 24. Rdg1 {[%clk 0:02:04]}  Qf6 {[%clk 0:00:50]} 25. d5 {[%clk 0:02:03]}  Nd4 {[%clk 0:00:47]} 26. Rh3 {[%clk 0:01:55]}  e5 {[%clk 0:00:31]} 27. Rhg3 {[%clk 0:01:51]}  Nf5 {[%clk 0:00:29]} 28. Rg4 {[%clk 0:01:46]}  Rd4 {[%clk 0:00:29]} 29. Rxd4 {[%clk 0:01:43]}  Nxd4 {[%clk 0:00:24]} 30. Rg4 {[%clk 0:01:44]}  Bf5 {[%clk 0:00:23]} 31. Rg3 {[%clk 0:01:42]}  Qh4 {[%clk 0:00:21]} 32. Kg2 {[%clk 0:01:34]}  Qxh5 {[%clk 0:00:19]} 33. Bd1 {[%clk 0:01:31]}  Qh4 {[%clk 0:00:17]} 34. c5 {[%clk 0:01:25]}  Qf6 {[%clk 0:00:16]} 35. Qe3 {[%clk 0:01:18]}  Bg6 {[%clk 0:00:13]} 36. Bb3 {[%clk 0:01:09]}  Kh7 {[%clk 0:00:11]} 37. Rg4 {[%clk 0:00:57]}  h5 {[%clk 0:00:09]} 38. Rg5 {[%clk 0:00:23]}  Nxf3 {[%clk 0:00:06]} 39. Rxg6 {[%clk 0:00:11]}  Nh4+ {[%clk 0:00:06]} 40. Kh2 {[%clk 0:00:10]}  Qxg6 {[%clk 0:00:06]} 41. Qf2 {[%clk 0:00:09]}  Qg4 {[%clk 0:00:05]} 42. Bc2+ {[%clk 0:00:09]}  e4 {[%clk 0:00:05]} 43. d6 {[%clk 0:00:08]}  Nf3+ {[%clk 0:00:05]} 44. Kh1 {[%clk 0:00:07]}  Qh3+ {[%clk 0:00:04]} 45. Qh2 {[%clk 0:00:08]}  Qxh2# {[%clk 0:00:05]} 0-1


[Site "https://www.chess.com"]

[Event "Titled Tuesday Blitz May 23 Late 2023"]
[White "Annaberdiyev, Meylis"]
[Black "Arnold, Ken"]
[WhiteFideId "14000563"]
[BlackFideId "2056836"]
[WhiteElo "2416"]
[BlackElo "2386"]
[Result "0-1"]
[Round "01"]
[TimeControl "180+2"]
[Date "2023.05.23"]
[WhiteClock "0:00:00"]
[BlackClock "0:00:30"]

1. e4 {[%clk 0:03:00]}  c6 {[%clk 0:02:58]} 2. d4 {[%clk 0:02:59]}  d5 {[%clk 0:02:58]} 3. e5 {[%clk 0:02:58]}  Bf5 {[%clk 0:02:58]} 4. h4 {[%clk 0:02:58]}  h5 {[%clk 0:02:58]} 5. Bd3 {[%clk 0:02:56]}  Bxd3 {[%clk 0:02:57]} 6. Qxd3 {[%clk 0:02:57]}  e6 {[%clk 0:02:57]} 7. Bg5 {[%clk 0:02:56]}  Qb6 {[%clk 0:02:57]} 8. Nd2 {[%clk 0:02:54]}  Qb5 {[%clk 0:02:55]} 9. Qb3 {[%clk 0:02:06]}  Na6 {[%clk 0:02:53]} 10. Ne2 {[%clk 0:02:05]}  Nh6 {[%clk 0:02:34]} 11. Ng3 {[%clk 0:02:01]}  Nf5 {[%clk 0:02:25]} 12. Nxf5 {[%clk 0:02:00]}  exf5 {[%clk 0:02:24]} 13. Qxb5 {[%clk 0:01:25]}  cxb5 {[%clk 0:02:24]} 14. a3 {[%clk 0:01:26]}  Rc8 {[%clk 0:02:23]} 15. c3 {[%clk 0:01:26]}  Be7 {[%clk 0:02:17]} 16. Nf1 {[%clk 0:01:25]}  Nc7 {[%clk 0:02:16]} 17. Ne3 {[%clk 0:01:25]}  g6 {[%clk 0:02:15]} 18. Bxe7 {[%clk 0:01:12]}  Kxe7 {[%clk 0:02:14]} 19. g3 {[%clk 0:01:13]}  Rhd8 {[%clk 0:02:12]} 20. O-O {[%clk 0:01:11]}  Ne6 {[%clk 0:02:11]} 21. a4 {[%clk 0:01:09]}  b4 {[%clk 0:02:09]} 22. Rfc1 {[%clk 0:01:07]}  bxc3 {[%clk 0:02:01]} 23. bxc3 {[%clk 0:01:07]}  b6 {[%clk 0:01:59]} 24. Rab1 {[%clk 0:01:03]}  Rc7 {[%clk 0:01:53]} 25. a5 {[%clk 0:01:03]}  bxa5 {[%clk 0:01:52]} 26. Rb5 {[%clk 0:01:03]}  Nxd4 {[%clk 0:01:49]} 27. Rb2 {[%clk 0:00:52]}  Nf3+ {[%clk 0:01:47]} 28. Kg2 {[%clk 0:00:52]}  Nxe5 {[%clk 0:01:47]} 29. Rb5 {[%clk 0:00:49]}  Ke6 {[%clk 0:01:40]} 30. Rxa5 {[%clk 0:00:44]}  d4 {[%clk 0:01:28]} 31. Ra6+ {[%clk 0:00:11]}  Rd6 {[%clk 0:01:20]} 32. Rxd6+ {[%clk 0:00:10]}  Kxd6 {[%clk 0:01:20]} 33. Rd1 {[%clk 0:00:11]}  Rxc3 {[%clk 0:01:06]} 34. Rxd4+ {[%clk 0:00:10]}  Ke6 {[%clk 0:01:04]} 35. Ra4 {[%clk 0:00:10]}  Rc7 {[%clk 0:01:01]} 36. Ra6+ {[%clk 0:00:11]}  Nc6 {[%clk 0:00:56]} 37. Nc4 {[%clk 0:00:11]}  Kd5 {[%clk 0:00:55]} 38. Ne3+ {[%clk 0:00:11]}  Kc5 {[%clk 0:00:54]} 39. Ra1 {[%clk 0:00:12]}  a5 {[%clk 0:00:54]} 40. Rc1+ {[%clk 0:00:09]}  Kb5 {[%clk 0:00:50]} 41. Nd5 {[%clk 0:00:09]}  Rd7 {[%clk 0:00:49]} 42. Rb1+ {[%clk 0:00:09]}  Nb4 {[%clk 0:00:48]} 43. Nc3+ {[%clk 0:00:08]}  Kc4 {[%clk 0:00:46]} 44. Na4 {[%clk 0:00:07]}  Rd6 {[%clk 0:00:41]} 45. Rc1+ {[%clk 0:00:06]}  Kb3 {[%clk 0:00:41]} 46. Ra1 {[%clk 0:00:06]}  Nc2 {[%clk 0:00:38]} 47. Nc5+ {[%clk 0:00:03]}  Kb4 {[%clk 0:00:33]} 48. Rc1 {[%clk 0:00:03]}  Kxc5 {[%clk 0:00:33]} 49. Rxc2+ {[%clk 0:00:03]}  Kb4 {[%clk 0:00:33]} 50. Rc7 {[%clk 0:00:04]}  Ra6 {[%clk 0:00:32]} 51. Rb7+ {[%clk 0:00:02]}  Kc3 {[%clk 0:00:32]} 52. Rc7+ {[%clk 0:00:02]}  Kb2 {[%clk 0:00:30]} 53. Rb7+ {[%clk 0:00:01]}  Kc3 {[%clk 0:00:30]} 54. Rc7+ {[%clk 0:00:02]}  Kb4 {[%clk 0:00:30]} 55. Rb7+ {[%clk 0:00:02]}  Kc5 {[%clk 0:00:30]} 56. Rc7+ {[%clk 0:00:00]}  Kb6 {[%clk 0:00:30]} 0-1


[Site "https://www.chess.com"]